fUST/lending_fUST_20260627
["ID","MTS","AMOUNT","RATE_DAILY","PERIOD"]
[426516563,1782511838000,-163.32634665,0.0003603,2]
[426516564,1782511838000,-177.85043188,0.0003603,2]
[426516560,1782511838000,-751.91059509,0.0003603,2]
[426516555,1782511838000,-154.26955709,0.0003565,15]
[426516556,1782511838000,-9069.2349697,0.00035651,2]
[426516557,1782511838000,-167.1016805,0.00035828,2]
[426516569,1782511838000,-185.77746358,0.0003603,2]
[426516562,1782511838000,-386.91034319,0.0003603,2]
[426516566,1782511838000,-293.48317611,0.0003603,2]
[426516561,1782511838000,-158.7276815,0.0003603,2]
[426516558,1782511838000,-180.39684421,0.0003603,2]
[426516567,1782511838000,-177.81326832,0.0003603,2]
[426516592,1782511839000,-84546.21494966,0.0004,10]
[426516593,1782511839000,-500.0,0.00040099,2]
[426516587,1782511839000,-186.0,0.00037432,2]
[426516586,1782511839000,-910.29457089,0.00036468,2]
[426516588,1782511839000,-399.69368667,0.00037712,15]
[426516589,1782511839000,-723.68711011,0.00038717,2]
[426516591,1782511839000,-220.513621,0.00039914,2]
[426516585,1782511839000,-3630.1826661,0.00036312,2]
[426516574,1782511839000,-187.67199743,0.0003603,2]
[426516584,1782511839000,-190.0,0.00036112,2]
[426516576,1782511839000,-186.47837653,0.0003603,2]
[426516578,1782511839000,-153.63840429,0.0003603,2]
[426516590,1782511839000,-219.51643033,0.00038873,2]
[426516577,1782511839000,-168.94985978,0.0003603,2]
[426516575,1782511839000,-343.99589973,0.0003603,2]
[426516579,1782511839000,-151.49389563,0.0003603,2]
[426516580,1782511839000,-316.1817596,0.00036075,2]
[426516582,1782511839000,-600.0,0.00036112,2]
[426516594,1782511839000,-500.0,0.00040099,31]
[426516581,1782511839000,-364.51127716,0.00036075,2]
[426516604,1782511839000,-500.0,0.00040099,31]
[426516615,1782511839000,-669.56444,0.000401,120]
[426516595,1782511839000,-361.45167253,0.00040099,31]
[426516610,1782511839000,-500.0,0.00040099,31]
[426516612,1782511839000,-500.0,0.00040099,31]
[426516613,1782511839000,-500.0,0.00040099,31]
[426516614,1782511839000,-15523.08563878,0.000401,120]
[426516611,1782511839000,-500.0,0.00040099,31]
[426516609,1782511839000,-500.0,0.00040099,31]
[426516607,1782511839000,-500.0,0.00040099,31]
[426516608,1782511839000,-500.0,0.00040099,31]
[426516583,1782511839000,-400.0,0.00036112,2]
[426516601,1782511839000,-275.34281542,0.00040099,31]
[426516597,1782511839000,-500.0,0.00040099,31]
[426516605,1782511839000,-500.0,0.00040099,31]
[426516599,1782511839000,-189.43263518,0.00040099,31]
[426516602,1782511839000,-500.0,0.00040099,31]
[426516596,1782511839000,-500.0,0.00040099,31]
[426516606,1782511839000,-500.0,0.00040099,31]
[426516598,1782511839000,-500.0,0.00040099,31]
[426516600,1782511839000,-500.0,0.00040099,31]
[426516603,1782511839000,-500.0,0.00040099,31]
[426516630,1782511840000,-326.05695513,0.000401,120]
[426516629,1782511840000,-673.94304487,0.000401,120]
[426516640,1782511843000,-49000.61372307,0.000401,120]
[426516641,1782511844000,500.0,0.00029162,30]
[426516649,1782511846000,-517.14414352,0.000401,120]
[426516658,1782512369000,500.0,0.00029394,30]
[426516659,1782512423000,160.0,0.00029255,30]
[426516669,1782512901000,500.0,0.00029394,30]
[426516711,1782513032000,-276.36,0.00029394,7]
[426516719,1782513032000,-5.14965098,0.00029394,7]
[426516723,1782513032000,-162.85158423,0.00033993,2]
[426516740,1782513032000,-500.0,0.00039899,31]
[426516721,1782513032000,-422.2644765,0.00031123,7]
[426516726,1782513032000,-290.0,0.00034432,2]
[426516736,1782513032000,-5222.7079949,0.00039767,2]
[426516738,1782513032000,-500.0,0.00039899,31]
[426516746,1782513032000,-500.0,0.00039899,31]
[426516742,1782513032000,-500.0,0.00039899,31]
[426516728,1782513032000,-325.70316846,0.00034979,2]
[426516744,1782513032000,-500.0,0.00039899,31]
[426516732,1782513032000,-651.40633693,0.00036075,2]
[426516734,1782513032000,-1499.6599244,0.00039767,2]
[426516748,1782513032000,-647.14520794,0.00039899,31]
[426516750,1782513032000,-36.23827302,0.00039899,31]
[426516730,1782513032000,-488.5547527,0.00035637,2]
[426516804,1782513039000,-500.0,0.00039899,31]
[426516814,1782513039000,-500.0,0.00039899,31]
[426516811,1782513039000,-500.0,0.00039899,31]
[426516816,1782513039000,-500.0,0.00039899,31]
[426516812,1782513039000,-500.0,0.00039899,31]
[426516813,1782513039000,-500.0,0.00039899,31]
[426516806,1782513039000,-500.0,0.00039899,31]
[426516821,1782513039000,-500.0,0.00039899,31]
[426516808,1782513039000,-500.0,0.00039899,31]
[426516807,1782513039000,-500.0,0.00039899,31]
[426516805,1782513039000,-500.0,0.00039899,31]
[426516803,1782513039000,-463.76172698,0.00039899,31]
[426516802,1782513039000,-186.0,0.00039342,2]
[426516800,1782513039000,-186.0,0.00036342,2]
[426516801,1782513039000,-250.0,0.0003884,2]
[426516799,1782513039000,-186.0,0.00033342,2]
[426516818,1782513039000,-500.0,0.00039899,31]
[426516809,1782513039000,-500.0,0.00039899,31]
[426516827,1782513039000,-500.0,0.00039899,31]
[426516825,1782513039000,-500.0,0.00039899,31]
[426516826,1782513039000,-500.0,0.00039899,31]
[426516829,1782513039000,-500.0,0.00039899,31]
[426516835,1782513039000,-4224.56791738,0.000399,120]
[426516832,1782513039000,-12201.12421058,0.000399,120]
[426516830,1782513039000,-343.33881852,0.00039899,31]
[426516831,1782513039000,-517.14414351,0.000399,120]
[426516837,1782513039000,-1014654.82974819,0.000399,120]
[426516838,1782513039000,-36966.18166578,0.000399,120]
[426516836,1782513039000,-47257.62621872,0.000399,120]
[426516834,1782513039000,-16364.19324349,0.000399,120]
[426516819,1782513039000,-500.0,0.00039899,31]
[426516824,1782513039000,-500.0,0.00039899,31]
[426516822,1782513039000,-243.53270212,0.00039899,31]
[426516828,1782513039000,-500.0,0.00039899,31]
[426516823,1782513039000,-500.0,0.00039899,31]
[426516820,1782513039000,-500.0,0.00039899,31]
[426516817,1782513039000,-500.0,0.00039899,31]
[426516833,1782513039000,-12094.0141932,0.000399,120]
[426516866,1782513047000,-646.72391271,0.000399,120]
[426516868,1782513047000,-553.60666808,0.000399,120]
[426516867,1782513047000,-490.1063834,0.000399,120]
[426516865,1782513047000,-500.0,0.00039899,31]
[426516925,1782514231000,-422.26447649,0.00032818,7]
[426516921,1782514231000,-422.26447649,0.00031255,7]
[426516932,1782514231000,-186.0,0.00036309,2]
[426516934,1782514231000,-186.0,0.00039309,2]
[426516936,1782514231000,-3704.2147325,0.0003959,2]
[426516943,1782514231000,-3043.78418248,0.000396,120]
[426516923,1782514231000,-422.26447649,0.0003188,7]
[426516940,1782514231000,-16462.84404208,0.000396,120]
[426516939,1782514231000,-1808.69223993,0.0003959,2]
[426516930,1782514231000,-422.26447651,0.00035006,7]
[426516926,1782514231000,-186.0,0.00033309,2]
[426516928,1782514231000,-422.26447649,0.00033755,7]
[426517116,1782514238000,-1923.00998034,0.000396,120]
[426517112,1782514238000,-17860.73550522,0.000396,120]
[426517115,1782514238000,-1476.87857012,0.000396,120]
[426517114,1782514238000,-73042.04559471,0.000396,120]
[426517113,1782514238000,-182833.2070005,0.000396,120]
[426517111,1782514238000,-41335.24597732,0.000396,120]
[426517123,1782514240000,-1820.46864757,0.000396,120]
[426517122,1782514240000,-796.79517445,0.000396,120]
[426517165,1782514243000,-54907.43701433,0.000396,120]
[426517169,1782514243000,160.0,0.00029306,30]
[426517182,1782514243000,-13048.8620387,0.000396,120]
[426517190,1782514243000,-1990.70963771,0.000396,120]
[426517184,1782514243000,-2512.25604105,0.000396,120]
[426517283,1782514246000,-1510.13671265,0.000396,120]
[426517277,1782514246000,-1565.81672411,0.000396,120]
[426517275,1782514246000,-63745.74238672,0.000396,120]
[426517232,1782514246000,-355.3,0.000396,120]
[426517226,1782514246000,-3847.42183177,0.000396,120]
[426517222,1782514246000,-1247.21235212,0.000396,120]
[426517224,1782514246000,-6579.00954959,0.000396,120]
[426517339,1782514637000,304.0,0.00029306,30]
[426517341,1782514854000,-899.35698429,0.000215,2]
[426517343,1782515086000,160.0,0.00029327,30]
[426517345,1782515367000,500.0,0.00029326,30]
[426517387,1782515432000,-5000.0,0.00020241,2]
[426517391,1782515432000,-878.27317719,0.00021769,2]
[426517389,1782515432000,-151.91244951,0.00020445,2]
[426517390,1782515432000,-1616.34096396,0.000215,2]
[426517392,1782515432000,-1877.55372544,0.00021869,2]
[426517393,1782515432000,-2114.6165015,0.00021969,2]
[426517394,1782515432000,-2288.77503996,0.00022069,2]
[426517397,1782515432000,-4429.77030381,0.00029227,2]
[426517398,1782515432000,-300.64638517,0.00029227,2]
[426517399,1782515432000,-132.8117249,0.00029243,2]
[426517396,1782515432000,-93.37691187,0.00029227,2]
[426517395,1782515432000,-4000.0,0.0002876,5]
[426517414,1782515438000,-867.1882751,0.00029243,2]
[426517415,1782515438000,-186.91,0.00029317,3]
[426517416,1782515438000,-560.77,0.00029317,3]
[426517418,1782515438000,-7130.7483787,0.00029327,2]
[426517419,1782515438000,-28089.43099763,0.00029327,2]
[426517420,1782515438000,-4037.53541554,0.00029327,2]
[426517423,1782515438000,-2761.43621564,0.00029327,2]
[426517422,1782515438000,-1965.83825098,0.00029327,2]
[426517421,1782515438000,-35394.1405313,0.00029327,2]
[426517417,1782515438000,-921.64550926,0.00029327,2]
[426517433,1782515440000,-1032.17070523,0.00029327,2]
[426517435,1782515440000,-1485.55645327,0.00029327,2]
[426517434,1782515440000,-7660.27872154,0.00029327,2]
[426517432,1782515440000,-2185.87931367,0.00029327,2]
[426517445,1782515443000,-468.942,0.00029327,2]
[426517446,1782515443000,-813.5,0.00029327,2]
[426517455,1782515446000,-41264.17922172,0.00029327,2]
[426517454,1782515446000,-2899.18069517,0.00029327,2]
[426517456,1782515447000,-25108.10746297,0.00029327,2]
[426517464,1782516062000,160.0,0.00029348,30]
[426517465,1782516122000,288.1,0.00030137,30]
[426517466,1782516139000,288.0,0.00030137,30]
[426517509,1782516632000,-150.96348909,0.000292,2]
[426517510,1782516632000,-152.63204881,0.000292,2]
[426517527,1782516632000,-2709.14,0.00029348,2]
[426517520,1782516632000,-38933.41434814,0.00029348,2]
[426517512,1782516632000,-153.05709282,0.000292,2]
[426517516,1782516632000,-524.732396,0.00029248,2]
[426517514,1782516632000,-2333.95494098,0.00029248,2]
[426517528,1782516632000,-10579.1697719,0.00029348,2]
[426517529,1782516632000,-2500.09975333,0.00029348,2]
[426517518,1782516632000,-373.82,0.00029338,3]
[426517536,1782516638000,-41189.48418494,0.00029348,2]
[426517537,1782516638000,-246042.4524371,0.00029348,2]
[426517535,1782516638000,-139368.73115889,0.00029348,2]
[426517555,1782516643000,-4188.28839154,0.00029348,2]
[426517554,1782516643000,-9929.10795564,0.00029348,2]
[426517553,1782516643000,-32246.21995803,0.00029348,2]
[426517552,1782516643000,-11534.66385544,0.00029348,2]
[426517561,1782516647000,-2616.55796285,0.00029348,2]
[426517562,1782516647000,-639.769,0.00029348,2]
[426517564,1782516647000,-799.65154018,0.00029348,2]
[426517563,1782516647000,-31941.50000004,0.00029348,2]
[426517568,1782517235000,165.9856173,0.00017248,2]
[426517567,1782517235000,165.9856173,0.00016649,2]
[426517571,1782517236000,165.9856173,0.00019994,2]
[426517570,1782517236000,165.9856173,0.00019068,2]
[426517569,1782517236000,165.9856173,0.00018082,2]
[426517572,1782517237000,177.84173282,0.000198,7]
[426517579,1782517586000,500.0,0.00029347,30]
[426517578,1782517586000,500.0,0.00029347,30]
[426517577,1782517586000,500.0,0.00029347,30]
[426517580,1782517587000,500.0,0.00029347,30]
[426517582,1782517587000,500.0,0.00029347,30]
[426517583,1782517587000,500.0,0.00029347,30]
[426517581,1782517587000,500.0,0.00029347,30]
[426517586,1782517588000,500.0,0.00029347,30]
[426517585,1782517588000,500.0,0.00029347,30]
[426517584,1782517588000,500.0,0.00029347,30]
[426517588,1782517589000,312.57454433,0.00029347,30]
[426517587,1782517589000,500.0,0.00029347,30]
[426517661,1782517838000,-1136.1814583,0.00021832,2]
[426517659,1782517838000,-3753.04285322,0.00021037,2]
[426517663,1782517838000,-561.9811565,0.00029192,2]
[426517664,1782517838000,-1425.3669913,0.00029192,2]
[426517669,1782517838000,-525.22805493,0.00029348,2]
[426517667,1782517838000,-3594.64267001,0.00029249,2]
[426517660,1782517838000,-572.68910814,0.00021636,2]
[426517662,1782517838000,-177.84173282,0.000219,7]
[426517666,1782517838000,-542.06524554,0.00029249,2]
[426517665,1782517838000,-300.0,0.00029248,2]
[426517670,1782517838000,-486.497498,0.00029349,2]
[426517671,1782517838000,-486.497498,0.00029349,2]
[426517672,1782517838000,-486.497498,0.00029349,2]
[426517677,1782517838000,-24829.9624148,0.00029349,2]
[426517675,1782517838000,-52589.06836445,0.00029349,2]
[426517674,1782517838000,-10501.86032596,0.00029349,2]
[426517673,1782517838000,-486.497498,0.00029349,2]
[426517668,1782517838000,-646.77031919,0.00029332,3]
[426517676,1782517838000,-6403.17796677,0.00029349,2]
[426517705,1782517844000,-1000.0,0.000286,2]
[426517706,1782517844000,-1000.0,0.000291,2]
[426517716,1782517881000,160.0,0.00029349,30]
[426517723,1782518203000,9024.72265622,0.00019999,2]
[426517724,1782518204000,423.87270493,0.0001958,2]
[426517725,1782518238000,304.0,0.00029349,30]
[426517726,1782518242000,66772.74524569,0.0002,2]
[426517727,1782518252000,747.44453478,0.00012,2]
[426517729,1782518473000,-151.0,0.00021249,7]
[426517730,1782518719000,160.0,0.00029327,30]
[426517755,1782519032000,-84.27994567,0.00021249,7]
[426517773,1782519032000,-187.28245202,0.00024773,2]
[426517757,1782519032000,-798.83627821,0.00021419,3]
[426517770,1782519032000,-385.07610607,0.00024773,2]
[426517797,1782519032000,-565.05218998,0.00029227,2]
[426517767,1782519032000,-167.0,0.00024274,12]
[426517763,1782519032000,-352.9199185,0.00022949,7]
[426517768,1782519032000,-213.93117004,0.00024773,2]
[426517761,1782519032000,-1700.30764198,0.00021519,2]
[426517765,1782519032000,-262.56758859,0.00023964,2]
[426517759,1782519032000,-798.83627821,0.00021419,3]
[426517780,1782519032000,-151.0,0.00025578,2]
[426517777,1782519032000,-362.73911565,0.00025162,2]
[426517784,1782519032000,-683.89516438,0.00027187,2]
[426517788,1782519032000,-166.56,0.00028818,2]
[426517782,1782519032000,-229.86038828,0.00025579,2]
[426517795,1782519032000,-6471.5016,0.00029227,2]
[426517792,1782519032000,-648.00698275,0.00029227,2]
[426517779,1782519032000,-414.55898932,0.00025162,2]
[426517786,1782519032000,-800.713648,0.00028805,2]
[426517790,1782519032000,-505.92756242,0.00029227,2]
[426517775,1782519032000,-158.95504096,0.00025151,2]
[426517919,1782519039000,-32990.24525376,0.00029327,2]
[426517926,1782519039000,-3201.05659321,0.00029327,2]
[426517925,1782519039000,-4500.0,0.00029327,2]
[426517923,1782519039000,-772.11128153,0.00029327,2]
[426517914,1782519039000,-5257.94686202,0.00029227,2]
[426517918,1782519039000,-602.47183972,0.00029326,2]
[426517927,1782519039000,-144808.69601663,0.00029327,2]
[426517917,1782519039000,-500.0,0.00029326,2]
[426517924,1782519039000,-2920.0,0.00029327,2]
[426517916,1782519039000,-500.0,0.00029326,2]
[426517915,1782519039000,-500.0,0.00029248,2]
[426517921,1782519039000,-4871.66643774,0.00029327,2]
[426517913,1782519039000,-9220.41253741,0.00029227,2]
[426517930,1782519039000,-262.19241944,0.00029335,3]
[426517939,1782519039000,-153.24707557,0.000299,2]
[426517929,1782519039000,-495.65,0.00029329,2]
[426517941,1782519039000,-374.37,0.00029999,2]
[426517940,1782519039000,-430.96,0.00029999,7]
[426517942,1782519039000,-374.38,0.00029999,3]
[426517943,1782519039000,-484048.40269431,0.0003,2]
[426517937,1782519039000,-151.18683563,0.000299,2]
[426517938,1782519039000,-153.24707557,0.000299,2]
[426517931,1782519039000,-945.41049887,0.00029348,2]
[426517934,1782519039000,-225.76994254,0.00029348,2]
[426517932,1782519039000,-1679.049046,0.00029348,2]
[426517933,1782519039000,-211.22627061,0.00029348,2]
[426517928,1782519039000,-4105.49825647,0.00029327,2]
[426517936,1782519039000,-151.18683563,0.000299,2]
[426517935,1782519039000,-170.01501731,0.00029349,2]
[426518018,1782519700000,160.0,0.00029337,30]
[426518019,1782519710000,4506.91,0.00030137,30]
[426518076,1782520231000,-349.25316587,0.00029349,2]
[426518070,1782520231000,-380.2072871,0.00029349,2]
[426518079,1782520231000,-791.6422464,0.00029562,2]
[426518082,1782520231000,-293.19698558,0.00029562,2]
[426518073,1782520231000,-675.2481419,0.00029349,2]
[426518085,1782520231000,-498.44526082,0.00029562,2]
[426518097,1782520231000,-276.87870839,0.000299,2]
[426518092,1782520231000,-1669.01076895,0.00029662,2]
[426518088,1782520231000,-17.35278688,0.00029662,2]
[426518093,1782520231000,-1007.15,0.000298,7]
[426518095,1782520231000,-472.19905824,0.000299,2]
[426518099,1782520231000,-1494.59862493,0.000299,2]
[426518209,1782520238000,-500.0,0.00029999,2]
[426518207,1782520238000,-2829.22617093,0.000299,2]
[426518212,1782520238000,-500.0,0.00029999,2]
[426518211,1782520238000,-500.0,0.00029999,2]
[426518215,1782520238000,-500.0,0.00029999,2]
[426518216,1782520238000,-4968.27776516,0.0003,2]
[426518210,1782520238000,-171.7302878,0.00029999,2]
[426518208,1782520238000,-500.0,0.00029999,2]
[426518217,1782520238000,-3000.0,0.0003,2]
[426518219,1782520238000,-130638.76104528,0.0003,2]
[426518218,1782520238000,-207.78486101,0.0003,2]
[426518214,1782520238000,-500.0,0.00029999,2]
[426518213,1782520238000,-500.0,0.00029999,2]
[426518227,1782520240000,-4008.12926576,0.0003,2]
[426518229,1782520240000,-303.30071407,0.0003,2]
[426518228,1782520240000,-4120.99026497,0.0003,2]
[426518226,1782520240000,-1439.22207948,0.0003,2]
[426518256,1782520246000,-8304.92928315,0.0003,2]
[426518261,1782520520000,160.0,0.00029337,30]
[426518264,1782520810000,351.16936516,0.00029346,90]
[426518289,1782521431000,-433.45811007,0.00027473,2]
[426518306,1782521432000,-305.632717,0.00028765,2]
[426518309,1782521432000,-1000.0,0.000291,2]
[426518311,1782521432000,-2119.82215891,0.000293,2]
[426518304,1782521432000,-1227.484554,0.000286,2]
[426518302,1782521432000,-526.36604359,0.00027473,2]
[426518415,1782521438000,-500.0,0.00029339,2]
[426518417,1782521438000,-190.1512707,0.00029339,2]
[426518411,1782521438000,-570.21120146,0.00029339,2]
[426518414,1782521438000,-184.41647683,0.00029339,2]
[426518416,1782521438000,-500.0,0.00029339,2]
[426518413,1782521438000,-500.0,0.00029339,2]
[426518412,1782521438000,-500.0,0.00029339,2]
[426518408,1782521438000,-500.0,0.00029339,2]
[426518418,1782521438000,-500.0,0.00029339,2]
[426518407,1782521438000,-500.0,0.00029339,2]
[426518410,1782521438000,-500.0,0.00029339,2]
[426518405,1782521438000,-1943.37420542,0.000293,2]
[426518409,1782521438000,-500.0,0.00029339,2]
[426518406,1782521438000,-266.89083186,0.00029339,2]
[426518422,1782521438000,-500.0,0.00029339,2]
[426518423,1782521438000,-500.0,0.00029339,2]
[426518434,1782521438000,-500.0,0.00029339,2]
[426518435,1782521438000,-19479.14590303,0.0002934,4]
[426518433,1782521438000,-500.0,0.00029339,2]
[426518430,1782521438000,-500.0,0.00029339,2]
[426518431,1782521438000,-500.0,0.00029339,2]
[426518427,1782521438000,-500.0,0.00029339,2]
[426518432,1782521438000,-500.0,0.00029339,2]
[426518428,1782521438000,-176.41362878,0.00029339,2]
[426518426,1782521438000,-500.0,0.00029339,2]
[426518425,1782521438000,-500.0,0.00029339,2]
[426518424,1782521438000,-500.0,0.00029339,2]
[426518420,1782521438000,-500.0,0.00029339,2]
[426518421,1782521438000,-500.0,0.00029339,2]
[426518429,1782521438000,-500.0,0.00029339,2]
[426518468,1782521440000,-510.71739599,0.0002934,4]
[426518469,1782521440000,-558.0,0.0002934,4]
[426518467,1782521440000,-20733.45259033,0.0002934,4]
[426518492,1782521443000,-620.51122382,0.0002934,4]
[426518485,1782521443000,-1838.28663598,0.0002934,4]
[426518486,1782521443000,-9235.65741066,0.0002934,4]
[426518491,1782521443000,-15143.53395227,0.0002934,4]
[426518490,1782521443000,-3702.75647797,0.0002934,4]
[426518489,1782521443000,-1172.17607391,0.0002934,4]
[426518488,1782521443000,-695.7,0.0002934,4]
[426518487,1782521443000,-5589.94012964,0.0002934,4]
[426518496,1782521446000,-978.61104329,0.0002934,4]
[426518497,1782521447000,-201734.85580099,0.0002934,4]
[426518498,1782521447000,-670.22,0.0002934,4]
[426518500,1782521519000,160.0,0.00029346,30]
[426518504,1782521807000,46915.83433064,0.0002,5]
[426518507,1782522035000,263.04455722,0.00016649,2]
[426518508,1782522054000,-3375.72359292,0.00021,5]
[426518511,1782522345000,160.0,0.00029344,30]
[426518539,1782522632000,-3256.58451855,0.00021,5]
[426518548,1782522632000,-147.40274093,0.00021367,2]
[426518547,1782522632000,-3367.69188853,0.00021,5]
[426518537,1782522632000,-156.0,0.000209,2]
[426518876,1782522638000,-7121.17752781,0.00024685,2]
[426518874,1782522638000,-464.04595875,0.00021367,2]
[426518873,1782522638000,-352.59725907,0.00021367,2]
[426518875,1782522638000,-6644.71683846,0.00021468,3]
[426518882,1782522638000,-1013.23909278,0.00028,2]
[426518878,1782522638000,-1335.491,0.000261,2]
[426518880,1782522638000,-171.1814319,0.00027772,2]
[426518879,1782522638000,-1335.49,0.000261,2]
[426518877,1782522638000,-545.085888,0.00025909,2]
[426518884,1782522638000,-262.45,0.00028581,2]
[426518885,1782522638000,-250.51265753,0.00028591,2]
[426518888,1782522638000,-500.0,0.00028989,2]
[426518886,1782522638000,-186.8235823,0.00028989,2]
[426518889,1782522638000,-500.0,0.00028989,2]
[426518887,1782522638000,-500.0,0.00028989,2]
[426518891,1782522638000,-136448.35858981,0.0002899,4]
[426518890,1782522638000,-299.14784102,0.00028989,2]
[426518883,1782522638000,-7754.92093943,0.00028216,2]
[426518977,1782523339000,160.0,0.00029353,30]
[426519014,1782523827000,176.06163542,0.00026695,120]
[426519078,1782523832000,-676.56329964,0.00024191,2]
[426519075,1782523832000,-190.86023579,0.00023949,2]
[426519083,1782523832000,-4349.15639344,0.00025564,2]
[426519081,1782523832000,-2394.17823502,0.00025464,2]
[426519079,1782523832000,-355.07004945,0.00024191,2]
[426519073,1782523832000,-240.12231721,0.0002342,14]
[426519460,1782523838000,-4177.24631291,0.00026974,2]
[426519464,1782523838000,-285.36610502,0.00027074,2]
[426519462,1782523838000,-978.74439438,0.00027074,2]
[426519459,1782523838000,-5796.67952132,0.00025864,2]
[426519457,1782523838000,-5760.44558755,0.00025764,2]
[426519455,1782523838000,-5232.01156919,0.00025664,2]
[426519453,1782523838000,-318.1872237,0.00025564,2]
[426519461,1782523838000,-543.74688577,0.00027074,2]
[426519463,1782523838000,-1738.25004441,0.00027074,2]
[426519465,1782523838000,-513.65898904,0.00027074,2]
[426519466,1782523838000,-912.25836453,0.00027074,2]
[426519474,1782523838000,-324.8657472,0.00028899,2]
[426519469,1782523838000,-873.788648,0.00028544,2]
[426519467,1782523838000,-873.788648,0.00027391,2]
[426519468,1782523838000,-272.542944,0.0002795,2]
[426519471,1782523838000,-500.0,0.00028899,2]
[426519473,1782523838000,-500.0,0.00028899,2]
[426519472,1782523838000,-321.26207786,0.00028899,2]
[426519470,1782523838000,-1873.8833554,0.00028785,2]
[426519475,1782523839000,-205002.03335087,0.000289,2]
[426519567,1782523847000,-5106.20253892,0.000289,2]
[426519575,1782523854000,4060.65610797,0.00020233,2]
[426519598,1782523901000,500.0,0.00025861,2]
[426519599,1782523901000,520.39141489,0.00027849,2]
[426519606,1782523902000,1000.0,0.000289,120]
[426519605,1782523902000,1000.0,0.000289,120]
[426519604,1782523902000,1000.0,0.000289,120]
[426519603,1782523902000,1000.0,0.000289,120]
[426519602,1782523902000,1000.0,0.000289,120]
[426519601,1782523902000,1000.0,0.000289,120]
[426519607,1782523903000,1000.0,0.000289,120]
[426519609,1782523903000,1000.0,0.000289,120]
[426519610,1782523903000,1000.0,0.000289,120]
[426519611,1782523903000,1000.0,0.000289,120]
[426519612,1782523903000,1000.0,0.000289,120]
[426519616,1782523903000,1000.0,0.000289,120]
[426519614,1782523903000,1000.0,0.000289,120]
[426519618,1782523903000,1000.0,0.000289,120]
[426519617,1782523903000,1000.0,0.000289,120]
[426519619,1782523903000,1000.0,0.000289,120]
[426519613,1782523903000,1000.0,0.000289,120]
[426519620,1782523904000,1000.0,0.000289,120]
[426519621,1782523904000,1000.0,0.000289,120]
[426519622,1782523904000,1000.0,0.000289,120]
[426519623,1782523904000,1000.0,0.000289,120]
[426519624,1782523904000,1000.0,0.000289,120]
[426519626,1782523904000,1000.0,0.000289,120]
[426519627,1782523904000,1000.0,0.000289,120]
[426519629,1782523904000,1000.0,0.000289,120]
[426519630,1782523904000,1000.0,0.000289,120]
[426519625,1782523904000,1000.0,0.000289,120]
[426519634,1782523905000,1000.0,0.000289,120]
[426519632,1782523905000,1000.0,0.000289,120]
[426519633,1782523905000,1000.0,0.000289,120]
[426519635,1782523905000,1000.0,0.000289,120]
[426519631,1782523905000,1000.0,0.000289,120]
[426519637,1782523905000,1000.0,0.000289,120]
[426519642,1782523905000,1000.0,0.000289,120]
[426519640,1782523905000,1000.0,0.000289,120]
[426519636,1782523905000,1000.0,0.000289,120]
[426519639,1782523905000,1000.0,0.000289,120]
[426519641,1782523905000,1000.0,0.000289,120]
[426519647,1782523906000,1025.48594019,0.000289,120]
[426519646,1782523906000,1000.0,0.000289,120]
[426519645,1782523906000,1000.0,0.000289,120]
[426519644,1782523906000,1000.0,0.000289,120]
[426519643,1782523906000,1000.0,0.000289,120]
[426519658,1782523932000,1000.0,0.000289,120]
[426519659,1782523932000,1000.0,0.000289,120]
[426519662,1782523932000,1000.0,0.000289,120]
[426519663,1782523932000,1000.0,0.000289,120]